[Event "*** Titled Tuesday Blitz"]
[Site "Chess.com"]
[Date "2018.08.07"]
[Round "10"]
[White "aa175"]
[Black "epccmelech"]
[Result "1-0"]
[WhiteElo "1920"]
[BlackElo "1639"]
[TimeControl "180+2"]
[EndTime "15:20:45 PDT"]
[Termination "aa175 won on time"]

1. e4 {[%clk 0:03:01.9]} 1... e6 {[%clk 0:02:56.4]} 2. d4 {[%clk 0:02:58.9]}
2... d5 {[%clk 0:02:55.5]} 3. e5 {[%clk 0:03:00.8]} 3... c5 {[%clk 0:02:51.8]}
4. c3 {[%clk 0:03:01]} 4... Qb6 {[%clk 0:02:50.6]} 5. Nf3 {[%clk 0:03:00.9]}
5... Bd7 {[%clk 0:02:46.3]} 6. Bd3 {[%clk 0:02:58.3]} 6... Bb5 {[%clk
0:02:44.8]} 7. Bxb5+ {[%clk 0:02:58.5]} 7... Qxb5 {[%clk 0:02:43.7]} 8. Qe2
{[%clk 0:03:00.4]} 8... Qxe2+ {[%clk 0:02:40.5]} 9. Kxe2 {[%clk 0:03:02.3]} 9...
Nc6 {[%clk 0:02:38.5]} 10. Be3 {[%clk 0:03:02.2]} 10... b6 {[%clk 0:02:32.7]}
11. Na3 {[%clk 0:02:55.6]} 11... Nh6 {[%clk 0:02:28.9]} 12. Nb5 {[%clk
0:02:54.8]} 12... Kd7 {[%clk 0:02:26]} 13. Bxh6 {[%clk 0:02:54.7]} 13... gxh6
{[%clk 0:02:25.3]} 14. h4 {[%clk 0:02:56.2]} 14... Rg8 {[%clk 0:02:23.4]} 15.
Rh3 {[%clk 0:02:52.6]} 15... a6 {[%clk 0:02:17.9]} 16. Na3 {[%clk 0:02:51.3]}
16... Be7 {[%clk 0:02:16.5]} 17. Rg3 {[%clk 0:02:51.1]} 17... Rxg3 {[%clk
0:02:15.1]} 18. fxg3 {[%clk 0:02:53]} 18... Rg8 {[%clk 0:02:11.4]} 19. Kf2
{[%clk 0:02:54.2]} 19... Rg4 {[%clk 0:02:06.5]} 20. Re1 {[%clk 0:02:46.6]} 20...
cxd4 {[%clk 0:02:01.1]} 21. cxd4 {[%clk 0:02:18.5]} 21... Nxd4 {[%clk
0:01:54.5]} 22. Nb1 {[%clk 0:02:12]} 22... Nxf3 {[%clk 0:01:49.2]} 23. gxf3
{[%clk 0:02:13.9]} 23... Rb4 {[%clk 0:01:47]} 24. b3 {[%clk 0:02:14.2]} 24... a5
{[%clk 0:01:39.4]} 25. Nc3 {[%clk 0:02:08.6]} 25... b5 {[%clk 0:01:17]} 26. Rb1
{[%clk 0:02:05.5]} 26... a4 {[%clk 0:01:07.7]} 27. bxa4 {[%clk 0:01:46.1]} 27...
Rxb1 {[%clk 0:01:03.4]} 28. Nxb1 {[%clk 0:01:48]} 28... bxa4 {[%clk 0:01:02.1]}
29. Nc3 {[%clk 0:01:49.9]} 29... a3 {[%clk 0:00:55.2]} 30. Ke3 {[%clk
0:01:49.7]} 30... Kc6 {[%clk 0:00:51.4]} 31. Kd3 {[%clk 0:01:45.4]} 31... Kc5
{[%clk 0:00:47.8]} 32. Ne2 {[%clk 0:01:44.4]} 32... Kb4 {[%clk 0:00:44.5]} 33.
Nd4 {[%clk 0:01:42.5]} 33... Bc5 {[%clk 0:00:40.4]} 34. Nc6+ {[%clk 0:01:32.4]}
34... Kb5 {[%clk 0:00:33.6]} 35. Nd8 {[%clk 0:01:34.3]} 35... h5 {[%clk
0:00:29.3]} 36. Nxf7 {[%clk 0:01:34.8]} 36... Bf2 {[%clk 0:00:26.4]} 37. Ng5
{[%clk 0:01:07.4]} 37... Bxg3 {[%clk 0:00:23.1]} 38. Nxe6 {[%clk 0:01:02.5]}
38... Bxe5 {[%clk 0:00:21.2]} 39. Ng5 {[%clk 0:00:37.4]} 39... Bg3 {[%clk
0:00:18.3]} 40. Kd4 {[%clk 0:00:24]} 40... Bxh4 {[%clk 0:00:13.8]} 41. Nxh7
{[%clk 0:00:24.3]} 41... Be7 {[%clk 0:00:08]} 42. f4 {[%clk 0:00:21.1]} 42... h4
{[%clk 0:00:05.2]} 43. f5 {[%clk 0:00:22.5]} 43... h3 {[%clk 0:00:04.8]} 44. f6
{[%clk 0:00:23.6]} 44... Bxf6+ {[%clk 0:00:04]} 45. Nxf6 {[%clk 0:00:25.5]}
45... h2 {[%clk 0:00:03.9]} 46. Nxd5 {[%clk 0:00:27.4]} 46... h1=Q {[%clk
0:00:02.7]} 47. Nc3+ {[%clk 0:00:29.3]} 1-0

[Event "*** Titled Tuesday Blitz"]
[Site "Chess.com"]
[Date "2018.08.07"]
[Round "10"]
[White "AlanZhang"]
[Black "DACF2905"]
[Result "1-0"]
[WhiteElo "1952"]
[BlackElo "2110"]
[TimeControl "180+2"]
[EndTime "15:20:51 PDT"]
[Termination "AlanZhang won by resignation"]

1. e4 {[%clk 0:03:01.9]} 1... c5 {[%clk 0:03:00.1]} 2. Nf3 {[%clk 0:02:59.7]}
2... e6 {[%clk 0:03:00.2]} 3. d4 {[%clk 0:03:00.2]} 3... cxd4 {[%clk 0:03:01.7]}
4. Nxd4 {[%clk 0:03:02]} 4... a6 {[%clk 0:03:02.9]} 5. a4 {[%clk 0:03:00.8]}
5... Bc5 {[%clk 0:03:03.5]} 6. Nb3 {[%clk 0:03:00.5]} 6... Ba7 {[%clk
0:03:04.3]} 7. Nc3 {[%clk 0:03:01]} 7... d6 {[%clk 0:03:03.8]} 8. Bd3 {[%clk
0:03:00.8]} 8... Nf6 {[%clk 0:03:04.5]} 9. Bd2 {[%clk 0:03:00]} 9... Nc6 {[%clk
0:03:05.8]} 10. O-O {[%clk 0:02:58.8]} 10... O-O {[%clk 0:03:05.9]} 11. Kh1
{[%clk 0:02:58.4]} 11... e5 {[%clk 0:03:06.8]} 12. f4 {[%clk 0:02:54.5]} 12...
exf4 {[%clk 0:03:06.2]} 13. Bxf4 {[%clk 0:02:56.4]} 13... Ne5 {[%clk 0:03:07.1]}
14. Qe1 {[%clk 0:02:35.4]} 14... Qd7 {[%clk 0:02:45.9]} 15. Bxe5 {[%clk
0:01:44.2]} 15... dxe5 {[%clk 0:02:45.8]} 16. Rxf6 {[%clk 0:01:39.6]} 16... gxf6
{[%clk 0:02:45.7]} 17. Nd5 {[%clk 0:01:40.1]} 17... Qe6 {[%clk 0:02:41.2]} 18.
Qg3+ {[%clk 0:01:40.1]} 18... Kh8 {[%clk 0:02:41.6]} 19. Rf1 {[%clk 0:01:38.4]}
19... Rg8 {[%clk 0:02:33.2]} 20. Qh4 {[%clk 0:01:35.7]} 20... f5 {[%clk
0:02:18.4]} 21. Nf6 {[%clk 0:01:07]} 21... Rg7 {[%clk 0:02:18.8]} 22. exf5
{[%clk 0:00:59.2]} 22... Qc6 {[%clk 0:02:08.4]} 23. Be4 {[%clk 0:00:58.4]} 23...
Qxa4 {[%clk 0:02:08.8]} 24. Nh5 {[%clk 0:00:17.7]} 24... Bd7 {[%clk 0:01:48.8]}
25. Nxg7 {[%clk 0:00:11.7]} 25... Bc6 {[%clk 0:00:09.1]} 26. Qf6 {[%clk
0:00:03.4]} 26... Kg8 {[%clk 0:00:08.9]} 27. Nh5 {[%clk 0:00:03.1]} 27... Kf8
{[%clk 0:00:09.6]} 28. Bxc6 {[%clk 0:00:02.9]} 28... Qxc6 {[%clk 0:00:10]} 29.
Qh8+ {[%clk 0:00:02.5]} 29... Ke7 {[%clk 0:00:10.4]} 30. Qxa8 {[%clk 0:00:02.1]}
30... Be3 {[%clk 0:00:09.2]} 31. f6+ {[%clk 0:00:03.1]} 31... Ke6 {[%clk
0:00:09.4]} 32. Qd8 {[%clk 0:00:04.5]} 32... Qd6 {[%clk 0:00:07.7]} 33. Qxd6+
{[%clk 0:00:05]} 33... Kxd6 {[%clk 0:00:08.6]} 34. Rd1+ {[%clk 0:00:06]} 34...
Ke6 {[%clk 0:00:09.7]} 35. Na5 {[%clk 0:00:06.4]} 35... b5 {[%clk 0:00:09.4]}
36. Nc6 {[%clk 0:00:07]} 36... Kf5 {[%clk 0:00:09.4]} 37. Rf1+ {[%clk
0:00:04.7]} 37... Kg5 {[%clk 0:00:08.8]} 38. Ng3 {[%clk 0:00:05.5]} 38... Bf4
{[%clk 0:00:08.5]} 39. Ne4+ {[%clk 0:00:06.3]} 39... Kf5 {[%clk 0:00:09.7]} 40.
g3 {[%clk 0:00:06]} 40... Kxe4 {[%clk 0:00:10.5]} 41. gxf4 {[%clk 0:00:07.1]}
41... exf4 {[%clk 0:00:11.7]} 42. Nd8 {[%clk 0:00:08.3]} 42... Kf5 {[%clk
0:00:12.2]} 43. Nxf7 {[%clk 0:00:09.3]} 43... Kxf6 {[%clk 0:00:13.4]} 44. Rxf4+
{[%clk 0:00:10.5]} 44... Kg6 {[%clk 0:00:14.4]} 45. Ne5+ {[%clk 0:00:11]} 45...
Kg5 {[%clk 0:00:15.1]} 46. Rf3 {[%clk 0:00:11.6]} 46... b4 {[%clk 0:00:15.2]}
47. Kg2 {[%clk 0:00:12.5]} 1-0

[Event "*** Titled Tuesday Blitz"]
[Site "Chess.com"]
[Date "2018.08.07"]
[Round "10"]
[White "AquivaRubinstein"]
[Black "Caisachess"]
[Result "1-0"]
[WhiteElo "2416"]
[BlackElo "2236"]
[TimeControl "180+2"]
[EndTime "15:21:00 PDT"]
[Termination "AquivaRubinstein won by resignation"]

1. d4 {[%clk 0:03:01.9]} 1... Nf6 {[%clk 0:03:00.5]} 2. c4 {[%clk 0:03:02.4]}
2... e6 {[%clk 0:03:01.7]} 3. Nf3 {[%clk 0:03:02.8]} 3... Bb4+ {[%clk
0:03:02.2]} 4. Nbd2 {[%clk 0:03:00.5]} 4... O-O {[%clk 0:03:02.4]} 5. g3 {[%clk
0:03:01.2]} 5... b6 {[%clk 0:03:02.1]} 6. Bg2 {[%clk 0:03:02.1]} 6... Bb7 {[%clk
0:03:03.7]} 7. O-O {[%clk 0:03:03.3]} 7... Be7 {[%clk 0:03:03.6]} 8. Qc2 {[%clk
0:03:03.5]} 8... c5 {[%clk 0:03:02.3]} 9. dxc5 {[%clk 0:02:56.1]} 9... Bxc5
{[%clk 0:03:01]} 10. a3 {[%clk 0:02:54.4]} 10... Be7 {[%clk 0:02:57.2]} 11. e4
{[%clk 0:02:40.5]} 11... d6 {[%clk 0:02:57.3]} 12. b4 {[%clk 0:02:38.1]} 12...
Qc7 {[%clk 0:02:58]} 13. Bb2 {[%clk 0:02:37.8]} 13... a5 {[%clk 0:02:52.1]} 14.
e5 {[%clk 0:02:33]} 14... Nfd7 {[%clk 0:02:33.1]} 15. exd6 {[%clk 0:02:29.8]}
15... Bxd6 {[%clk 0:02:33.9]} 16. Ng5 {[%clk 0:02:26.6]} 16... g6 {[%clk
0:02:26.4]} 17. Bxb7 {[%clk 0:02:05.7]} 17... Qxb7 {[%clk 0:02:25.9]} 18. Nde4
{[%clk 0:02:06.3]} 18... Be5 {[%clk 0:02:21.9]} 19. Bxe5 {[%clk 0:01:33.2]}
19... Nxe5 {[%clk 0:02:21]} 20. Nf6+ {[%clk 0:01:34.2]} 20... Kg7 {[%clk
0:02:21.6]} 21. f4 {[%clk 0:01:24.3]} 21... Kxf6 {[%clk 0:02:13.5]} 22. fxe5+
{[%clk 0:01:07.2]} 22... Kg7 {[%clk 0:02:09.3]} 23. Qf2 {[%clk 0:00:59]} 23...
Qe7 {[%clk 0:02:08.2]} 24. Ne4 {[%clk 0:00:52.5]} 24... Nc6 {[%clk 0:02:02.9]}
25. b5 {[%clk 0:00:45.9]} 25... Nxe5 {[%clk 0:01:46.2]} 26. Qd4 {[%clk
0:00:44.1]} 26... f6 {[%clk 0:01:45.4]} 27. Nxf6 {[%clk 0:00:43.7]} 27... Rxf6
{[%clk 0:01:36.8]} 28. Qxe5 {[%clk 0:00:44.7]} 28... Rf8 {[%clk 0:01:37.2]} 29.
Rxf6 {[%clk 0:00:42.9]} 29... Qxf6 {[%clk 0:01:32.1]} 30. Qxf6+ {[%clk 0:00:40]}
30... Rxf6 {[%clk 0:01:31.9]} 31. Rd1 {[%clk 0:00:32.1]} 31... Rf3 {[%clk
0:01:22.9]} 32. Rd6 {[%clk 0:00:32.1]} 32... Rxa3 {[%clk 0:01:18.9]} 33. Rxb6
{[%clk 0:00:29.9]} 33... Kf6 {[%clk 0:01:18.6]} 34. c5 {[%clk 0:00:28.5]} 34...
Rc3 {[%clk 0:01:19]} 35. c6 {[%clk 0:00:29.5]} 35... Ke5 {[%clk 0:01:18]} 36.
Ra6 {[%clk 0:00:29.6]} 36... Ke4 {[%clk 0:01:17.8]} 37. Kg2 {[%clk 0:00:29]}
37... g5 {[%clk 0:00:58.1]} 38. Rxa5 {[%clk 0:00:26.3]} 38... h5 {[%clk
0:00:52.7]} 39. Ra4+ {[%clk 0:00:20.9]} 39... Kd5 {[%clk 0:00:53.9]} 40. h3
{[%clk 0:00:18.1]} 40... Rc2+ {[%clk 0:00:49]} 41. Kf3 {[%clk 0:00:18.4]} 41...
Rc3+ {[%clk 0:00:50.4]} 42. Ke2 {[%clk 0:00:19.3]} 42... Kd6 {[%clk 0:00:47.5]}
43. Rb4 {[%clk 0:00:19.3]} 43... Kc5 {[%clk 0:00:40.6]} 44. Rb1 {[%clk
0:00:18.2]} 44... Kb6 {[%clk 0:00:39.3]} 45. Rb2 {[%clk 0:00:17.4]} 45... Rxg3
{[%clk 0:00:39.2]} 46. Rc2 {[%clk 0:00:17.3]} 46... Rg2+ {[%clk 0:00:34.8]} 47.
Kd3 {[%clk 0:00:17.7]} 47... Rxc2 {[%clk 0:00:35.9]} 48. Kxc2 {[%clk 0:00:18.9]}
48... g4 {[%clk 0:00:36.6]} 49. hxg4 {[%clk 0:00:18.5]} 49... hxg4 {[%clk
0:00:38]} 50. Kd3 {[%clk 0:00:20.1]} 50... g3 {[%clk 0:00:39.5]} 51. Ke3 {[%clk
0:00:21.4]} 51... e5 {[%clk 0:00:37.4]} 52. Kf3 {[%clk 0:00:22.2]} 1-0

[Event "*** Titled Tuesday Blitz"]
[Site "Chess.com"]
[Date "2018.08.07"]
[Round "10"]
[White "morphy1984"]
[Black "indfraeng"]
[Result "0-1"]
[WhiteElo "2474"]
[BlackElo "1959"]
[TimeControl "180+2"]
[EndTime "15:21:10 PDT"]
[Termination "indfraeng won on time"]

1. e4 {[%clk 0:03:01.8]} 1... e5 {[%clk 0:02:57.8]} 2. Nf3 {[%clk 0:03:02.2]}
2... Nf6 {[%clk 0:02:58]} 3. Nxe5 {[%clk 0:03:02]} 3... d6 {[%clk 0:02:57.9]} 4.
Nf3 {[%clk 0:03:02.1]} 4... Nxe4 {[%clk 0:02:58.8]} 5. Nc3 {[%clk 0:03:02.2]}
5... Nxc3 {[%clk 0:02:58.6]} 6. dxc3 {[%clk 0:03:02.6]} 6... Nd7 {[%clk
0:02:59.2]} 7. Bd3 {[%clk 0:03:02.6]} 7... Be7 {[%clk 0:03:00]} 8. Be3 {[%clk
0:03:02.8]} 8... Nf6 {[%clk 0:03:00.8]} 9. Qe2 {[%clk 0:03:02.5]} 9... O-O
{[%clk 0:03:01.7]} 10. O-O-O {[%clk 0:03:02.8]} 10... c5 {[%clk 0:03:02.2]} 11.
h3 {[%clk 0:02:56]} 11... Be6 {[%clk 0:03:02.8]} 12. Kb1 {[%clk 0:02:53.4]}
12... Qa5 {[%clk 0:02:59.5]} 13. c4 {[%clk 0:02:42.2]} 13... b5 {[%clk
0:02:59.4]} 14. b3 {[%clk 0:02:42]} 14... bxc4 {[%clk 0:02:57.4]} 15. Bxc4
{[%clk 0:02:42.7]} 15... Ne4 {[%clk 0:02:56.4]} 16. Bd2 {[%clk 0:02:38.6]} 16...
Nxd2+ {[%clk 0:02:56.4]} 17. Qxd2 {[%clk 0:02:36.9]} 17... Qa3 {[%clk
0:02:49.7]} 18. Bxe6 {[%clk 0:02:19.4]} 18... fxe6 {[%clk 0:02:48.7]} 19. Qc1
{[%clk 0:02:12]} 19... Qxc1+ {[%clk 0:02:48.5]} 20. Kxc1 {[%clk 0:02:09.7]}
20... e5 {[%clk 0:02:42.6]} 21. Rhe1 {[%clk 0:02:07.4]} 21... Rad8 {[%clk
0:02:42.1]} 22. c4 {[%clk 0:02:07.7]} 22... Bf6 {[%clk 0:02:41.4]} 23. Kc2
{[%clk 0:02:04.7]} 23... Rfe8 {[%clk 0:02:41.9]} 24. Nd2 {[%clk 0:02:02.5]}
24... d5 {[%clk 0:02:41]} 25. cxd5 {[%clk 0:02:03.1]} 25... Rxd5 {[%clk
0:02:41.6]} 26. Ne4 {[%clk 0:02:04.4]} 26... Red8 {[%clk 0:02:41.4]} 27. Rxd5
{[%clk 0:02:00]} 27... Rxd5 {[%clk 0:02:41.9]} 28. Rd1 {[%clk 0:02:01]} 28...
Rxd1 {[%clk 0:02:40.1]} 29. Kxd1 {[%clk 0:02:01.5]} 29... Be7 {[%clk 0:02:39.6]}
30. Kc2 {[%clk 0:02:01.6]} 30... Kf7 {[%clk 0:02:40.4]} 31. Kd3 {[%clk
0:02:02.3]} 31... Ke6 {[%clk 0:02:39.3]} 32. Kc4 {[%clk 0:02:03]} 32... Kf5
{[%clk 0:02:39.7]} 33. Nxc5 {[%clk 0:02:02.5]} 33... Bh4 {[%clk 0:02:40.3]} 34.
g3 {[%clk 0:01:59.7]} 34... Bg5 {[%clk 0:02:40.7]} 35. Kd5 {[%clk 0:01:58.9]}
35... Bd2 {[%clk 0:02:40.7]} 36. Ne4 {[%clk 0:01:58.5]} 36... Ba5 {[%clk
0:02:37.9]} 37. a3 {[%clk 0:01:51]} 37... Be1 {[%clk 0:02:37.8]} 38. b4 {[%clk
0:01:39.4]} 38... a6 {[%clk 0:02:36.7]} 39. Nd6+ {[%clk 0:01:22.2]} 39... Kf6
{[%clk 0:02:36.1]} 40. Kc4 {[%clk 0:01:14.9]} 40... Ke6 {[%clk 0:02:31.2]} 41.
Ne4 {[%clk 0:01:15.3]} 41... Kf5 {[%clk 0:02:31.9]} 42. f3 {[%clk 0:01:13.5]}
42... g5 {[%clk 0:02:28.9]} 43. a4 {[%clk 0:01:06.9]} 43... h5 {[%clk
0:02:27.5]} 44. b5 {[%clk 0:00:51.8]} 44... axb5+ {[%clk 0:02:27.3]} 45. axb5
{[%clk 0:00:52.9]} 45... g4 {[%clk 0:02:27.6]} 46. hxg4+ {[%clk 0:00:48.8]}
46... hxg4 {[%clk 0:02:27.9]} 47. b6 {[%clk 0:00:43.5]} 47... Ba5 {[%clk
0:02:23.6]} 48. b7 {[%clk 0:00:29.5]} 48... Bc7 {[%clk 0:02:24]} 49. Kd3 {[%clk
0:00:21.1]} 49... gxf3 {[%clk 0:02:23.7]} 50. Ke3 {[%clk 0:00:22.2]} 50... Kg4
{[%clk 0:02:24.3]} 51. Kf2 {[%clk 0:00:20]} 51... Bb6+ {[%clk 0:02:22]} 52. Kf1
{[%clk 0:00:20.6]} 52... Ba7 {[%clk 0:02:22.7]} 53. Ke1 {[%clk 0:00:15]} 53...
Kh3 {[%clk 0:02:18]} 54. Kf1 {[%clk 0:00:15.2]} 54... Kg4 {[%clk 0:02:17]} 55.
Ke1 {[%clk 0:00:15.6]} 55... Bb8 {[%clk 0:02:16.6]} 56. Kf2 {[%clk 0:00:15.9]}
56... Ba7+ {[%clk 0:02:17.1]} 57. Kf1 {[%clk 0:00:15.8]} 57... Kh3 {[%clk
0:02:12.4]} 58. Nc5 {[%clk 0:00:12]} 58... Kxg3 {[%clk 0:02:09.7]} 59. Nd7
{[%clk 0:00:13]} 59... e4 {[%clk 0:02:08.3]} 60. Nf6 {[%clk 0:00:05.4]} 60... e3
{[%clk 0:02:05.6]} 61. Ne4+ {[%clk 0:00:06.2]} 61... Kf4 {[%clk 0:02:06]} 62.
Nc3 {[%clk 0:00:06.2]} 62... Kg4 {[%clk 0:01:53.7]} 63. Ke1 {[%clk 0:00:05.2]}
63... Kf4 {[%clk 0:01:44.4]} 64. Kf1 {[%clk 0:00:05.9]} 64... f2 {[%clk
0:01:45.2]} 65. Ne2+ {[%clk 0:00:05.3]} 65... Kf3 {[%clk 0:01:46]} 66. Nc3
{[%clk 0:00:05.5]} 66... Kf4 {[%clk 0:01:45]} 67. Ke2 {[%clk 0:00:05.3]} 67...
Ke5 {[%clk 0:01:44.9]} 68. Nd1 {[%clk 0:00:05.3]} 68... Kd6 {[%clk 0:01:45.3]}
0-1

[Event "*** Titled Tuesday Blitz"]
[Site "Chess.com"]
[Date "2018.08.07"]
[Round "10"]
[White "Egorov_Pavel"]
[Black "Abrito99"]
[Result "0-1"]
[WhiteElo "2327"]
[BlackElo "2508"]
[TimeControl "180+2"]
[EndTime "15:21:54 PDT"]
[Termination "Abrito99 won by checkmate"]

1. d4 {[%clk 0:02:56.2]} 1... Nf6 {[%clk 0:02:59]} 2. c4 {[%clk 0:02:56.2]} 2...
g6 {[%clk 0:02:59.7]} 3. Nc3 {[%clk 0:02:57.2]} 3... Bg7 {[%clk 0:03:01.1]} 4.
e4 {[%clk 0:02:58.6]} 4... d6 {[%clk 0:03:02.5]} 5. h3 {[%clk 0:02:57.9]} 5...
O-O {[%clk 0:03:03.8]} 6. Nf3 {[%clk 0:02:59.7]} 6... e5 {[%clk 0:03:04.8]} 7.
d5 {[%clk 0:03:01.2]} 7... a5 {[%clk 0:03:05.8]} 8. Bg5 {[%clk 0:02:58.6]} 8...
Na6 {[%clk 0:03:07.3]} 9. Be2 {[%clk 0:02:46.4]} 9... h6 {[%clk 0:03:05.4]} 10.
Be3 {[%clk 0:02:47.2]} 10... Nc5 {[%clk 0:03:05.7]} 11. Qc2 {[%clk 0:02:48.5]}
11... Nfd7 {[%clk 0:03:01.7]} 12. g4 {[%clk 0:02:47.7]} 12... c6 {[%clk
0:02:54.4]} 13. O-O-O {[%clk 0:02:46.8]} 13... Qe7 {[%clk 0:02:47.9]} 14. h4
{[%clk 0:02:36.6]} 14... Nb6 {[%clk 0:02:31.5]} 15. Rdg1 {[%clk 0:02:27.5]}
15... cxd5 {[%clk 0:02:31.6]} 16. cxd5 {[%clk 0:02:27.8]} 16... Bd7 {[%clk
0:02:31.8]} 17. Qd2 {[%clk 0:02:27.5]} 17... Rfc8 {[%clk 0:02:14.1]} 18. Kb1
{[%clk 0:02:26.6]} 18... Qf8 {[%clk 0:02:12.8]} 19. h5 {[%clk 0:02:24.6]} 19...
g5 {[%clk 0:02:13.4]} 20. Nxg5 {[%clk 0:02:20.6]} 20... hxg5 {[%clk 0:02:14.5]}
21. Bxg5 {[%clk 0:02:22.5]} 21... Nba4 {[%clk 0:01:37.6]} 22. h6 {[%clk
0:02:20.6]} 22... Nxc3+ {[%clk 0:01:37.2]} 23. bxc3 {[%clk 0:02:14.1]} 23...
Nxe4 {[%clk 0:01:36.3]} 24. Qe3 {[%clk 0:01:09.6]} 24... Nxc3+ {[%clk
0:01:27.7]} 25. Ka1 {[%clk 0:01:10.8]} 25... Nxd5 {[%clk 0:01:27.4]} 26. Qd2
{[%clk 0:00:16.4]} 26... e4+ {[%clk 0:00:54.5]} 27. hxg7 {[%clk 0:00:17.5]}
27... Qxg7+ {[%clk 0:00:56.4]} 28. Qb2 {[%clk 0:00:19.1]} 28... Rc2 {[%clk
0:00:53.1]} 29. Qxg7+ {[%clk 0:00:16.9]} 29... Kxg7 {[%clk 0:00:55]} 30. Bh6+
{[%clk 0:00:16]} 30... Kg6 {[%clk 0:00:53.9]} 31. Bd1 {[%clk 0:00:15.5]} 31...
Rxf2 {[%clk 0:00:54.3]} 32. g5 {[%clk 0:00:16]} 32... Nf4 {[%clk 0:00:54.7]} 33.
Rf1 {[%clk 0:00:15.5]} 33... Rxf1 {[%clk 0:00:55.6]} 34. Rxf1 {[%clk 0:00:17.4]}
34... Nd5 {[%clk 0:00:51.7]} 35. Bb3 {[%clk 0:00:16.8]} 35... Bc6 {[%clk
0:00:46.8]} 36. Rd1 {[%clk 0:00:12.2]} 36... e3 {[%clk 0:00:36.7]} 37. Bxd5
{[%clk 0:00:11.9]} 37... Bxd5 {[%clk 0:00:37.5]} 38. Re1 {[%clk 0:00:04]} 38...
Re8 {[%clk 0:00:37.6]} 39. Kb2 {[%clk 0:00:04.9]} 39... Bc4 {[%clk 0:00:31.9]}
40. Kc3 {[%clk 0:00:05.9]} 40... Bxa2 {[%clk 0:00:33.2]} 41. Kd3 {[%clk
0:00:06.3]} 41... b5 {[%clk 0:00:32.3]} 42. Rxe3 {[%clk 0:00:07.4]} 42... Bc4+
{[%clk 0:00:32.7]} 43. Kd4 {[%clk 0:00:08.7]} 43... Rxe3 {[%clk 0:00:34.1]} 44.
Kxe3 {[%clk 0:00:10.6]} 44... d5 {[%clk 0:00:31.7]} 45. Kd4 {[%clk 0:00:10.9]}
45... f6 {[%clk 0:00:31]} 46. Kc5 {[%clk 0:00:11.7]} 46... fxg5 {[%clk
0:00:31.8]} 47. Bf8 {[%clk 0:00:12.5]} 47... Kf5 {[%clk 0:00:32.8]} 48. Kd4
{[%clk 0:00:12.2]} 48... b4 {[%clk 0:00:33]} 49. Bd6 {[%clk 0:00:12.2]} 49... b3
{[%clk 0:00:34.1]} 50. Kc3 {[%clk 0:00:13.8]} 50... Ke4 {[%clk 0:00:34.5]} 51.
Bc7 {[%clk 0:00:14.4]} 51... d4+ {[%clk 0:00:32.7]} 52. Kb2 {[%clk 0:00:15.1]}
52... g4 {[%clk 0:00:32.8]} 53. Ka3 {[%clk 0:00:15.4]} 53... Kf3 {[%clk
0:00:31.9]} 54. Bxa5 {[%clk 0:00:15.7]} 54... g3 {[%clk 0:00:33.4]} 55. Bb6
{[%clk 0:00:17.6]} 55... Ke4 {[%clk 0:00:33.5]} 56. Bc7 {[%clk 0:00:16.5]} 56...
g2 {[%clk 0:00:34.9]} 57. Bh2 {[%clk 0:00:18]} 57... d3 {[%clk 0:00:36.4]} 58.
Kb2 {[%clk 0:00:19]} 58... d2 {[%clk 0:00:37.7]} 59. Bg1 {[%clk 0:00:19]} 59...
d1=Q {[%clk 0:00:38.3]} 60. Bc5 {[%clk 0:00:17.1]} 60... Qc2+ {[%clk 0:00:39]}
61. Ka3 {[%clk 0:00:18.6]} 61... b2 {[%clk 0:00:38.3]} 62. Be3 {[%clk
0:00:16.6]} 62... Qb3# {[%clk 0:00:39.5]} 0-1